Cogmind - Beta 17 --- EXPLORER MODE // 2026.08.13 @ 18:58:43 // Winter2019/RPGLIKE Player: Goose Result: Destroyed by Triborg with Siege Cannon Performance ------------- Evolutions (0) 0 Regions Visited (5) 1000 Robots Destroyed (50) 250 Value Destroyed (1159) 1159 Prototype IDs (2) 40 Alien Tech Used (0) 0 Bonus (300) 300 TOTAL SCORE: 2749 Bonus ------- Registered with UFD 300 Cogmind --------- Core Integrity 0/2000 Matter 193/300 Energy 109/240 System Corruption 1% Temperature Critical (764) Movement Treading (260) Ox1 Location -7/Scraptown Parts ------- > --- POWER (2) -------- Nuclear Core > --- PROPULSION (2) --- Spiked Treads > --- UTILITY (5) ------ Improved Heat Sink Structural Scanner Terrain Scan Processor > --- WEAPON (4) ------- Pulse Rifle Ion Cannon Advanced Assault Cannon > --- INVENTORY (2) ---- Mining Laser Powered Hammer Peak State ------------ > --- POWER ------------ Light Deuterium Engine Nuclear Core > --- PROPULSION ------- Spiked Treads Spiked Treads > --- UTILITY ---------- Improved Heat Sink Structural Scanner Terrain Scanner Terrain Scan Processor Improved Weapon Shielding > --- WEAPON ----------- Light EM Pulse Cannon Ion Cannon Advanced Assault Cannon Powered Hammer > --- INVENTORY -------- Pulse Rifle Mining Laser [Rating: 33] Favorites ----------- Power Ion Engine Engine Ion Engine Power Core Light Nuclear Core Propulsion Light Treads Treads Light Treads Utility Structural Scanner Device Structural Scanner Processor Terrain Scan Processor Protection Improved Weapon Shielding Weapon Medium Laser Energy Gun Medium Laser Energy Cannon Beam Cannon Ballistic Gun Assault Rifle Ballistic Cannon Advanced Assault Cannon Special Weapon Mining Laser Impact Weapon Powered Hammer Build | -11 -10 -10 -10 -7 -7 ------- Run | Yrd Mat Min Sub Rec Scr Slots Evolved 9 | 1 6 . . 2 . Power 1 | . 1 . . . . Propulsion 1 | 1 . . . . . Utility 4 | . 3 . . 1 . Weapon 3 | . 2 . . 1 . Parts Attached 34 | 5 11 . 3 9 6 Power 8 | 1 2 . 1 4 . Engine 4 | 1 1 . 1 1 . Core 4 | . 1 . . 3 . Reactor . | . . . . . . Propulsion 5 | 2 . . . . 3 Treads 5 | 2 . . . . 3 Leg . | . . . . . . Wheel . | . . . . . . Hover . | . . . . . . Flight . | . . . . . . Utility 8 | 1 5 . . 2 . Device 6 | 1 4 . . 1 . Storage . | . . . . . . Processor 1 | . 1 . . . . Hackware . | . . . . . . Protection 1 | . . . . 1 . Artifact . | . . . . . . Weapon 13 | 1 4 . 2 3 3 Energy Gun 5 | . 3 . . . 2 Energy Cannon 3 | . 1 . . 2 . Ballistic Gun 2 | 1 . . 1 . . Ballistic Cannon 1 | . . . . . 1 Launcher . | . . . . . . Special Weapon 1 | . . . 1 . . Impact Weapon 1 | . . . . 1 . Slashing Weapon . | . . . . . . Piercing Weapon . | . . . . . . Special Melee Weapon . | . . . . . . Unidentified Prototypes . | . . . . . . Parts Lost 2 | . . . . . 2 Power 1 | . . . . . 1 Propulsion . | . . . . . . Utility 1 | . . . . . 1 Weapon . | . . . . . . Highest Loss Streak 2 | . . . . . 2 To Critical Strikes . | . . . . . . Average Backups 1 | . . 1 . . 1 Power . | . . . . . . Propulsion . | . . . . . . Utility . | . . . . . . Weapon 1 | . . 1 . . 1 Tool/Special . | . . . . . . Unused Backups . | . . . . . . Power . | . . . . . . Propulsion . | . . . . . . Utility . | . . . . . . Weapon . | . . . . . . Tool/Special . | . . . . . . Average Slot Usage (%) 99 | . 97 100 99 99 99 Engine 8 | . 10 9 9 7 7 Core 7 | . 7 9 9 7 7 Treads 17 | . 20 18 18 15 14 Device 25 | . 25 27 27 25 22 Processor 7 | . 7 9 9 7 7 Protection 2 | . . . . 3 6 Energy Gun 8 | . 9 9 9 7 6 Energy Cannon 10 | . 5 9 9 12 15 Ballistic Gun 4 | . 10 9 5 . . Special Weapon 1 | . . . 3 1 . Impact Weapon 2 | . . . . 7 6 Peak Build Rating 33 | 5 16 16 17 30 33 Average Rating 20 | 3 13 16 16 25 29 On Entrance 13 | . 5 16 16 17 28 Avg Prop Armor Cover (%) . | . . . . . . Naked Turns . | . . . . . . Heaviest Build 36 | 8 20 20 20 32 36 Greatest Support 40 | 40 40 40 40 40 40 Greatest Overweight (x) 1 | . . . . . 1 Average Overweight (x) . | . . . . . . Largest Inventory Capacity 2 | . 1 1 1 2 2 Average Capacity 1 | . . 1 1 1 2 Most Carried 2 | . 1 1 1 2 2 Average Carried 1 | . . 1 . . 1 Final Capacity 2 | . 1 1 1 2 2 Final Carried 2 | . 1 1 1 1 2 Class Distribution -------------------- 53% | Hacker-Skirmisher 37% | Hacker-Assassin 5% | Hacker-Mutant Dominant Class ---------------- Hacker-Skirmisher | -10/Materials Hacker-Skirmisher | -10/Mines Hacker-Skirmisher | -10/Subcaves Hacker-Assassin | -7/Recycling Hacker-Assassin | -7/Scraptown Resources | -11 -10 -10 -10 -7 -7 ----------- Run | Yrd Mat Min Sub Rec Scr Matter Collected 1389 | 184 441 12 378 120 254 Remotely . | . . . . . . Salvage Created 2054 | . 663 30 449 373 539 Parts 107 | . 40 2 20 12 33 Haulers Intercepted . | . . . . . . Recyclers Shooed 5 | . 2 . . 3 . Parts Field Recycled . | . . . . . . Retrieved Matter . | . . . . . . Parts Self-Destructed . | . . . . . . Prevented . | . . . . . . Parts Restored . | . . . . . . Kills | -11 -10 -10 -10 -7 -7 ------- Run | Yrd Mat Min Sub Rec Scr Combat Hostiles Destroyed 29 | . 8 . 12 . 9 Guns 11 | . 7 . 4 . . Cannons 15 | . 1 . 8 . 6 AOE 3 | . . . . . 3 Classes Destroyed 12 | . 6 . 2 . 4 Worker 5 | . 4 1 . . . Builder 4 | . 2 . . 2 . Recycler 7 | . 2 . . 5 . Turret 2 | . . . 2 . . Watcher 3 | . 3 . . . . Swarmer 6 | . 2 . 4 . . Grunt 6 | . 6 . . . . Subdweller 8 | . . . 8 . . Bolteater 2 | . . . . . 2 Explorer 1 | . . . . . 1 Scrapper 5 | . . . . . 5 Elite 1 | . . . . . 1 Best Kill Streak 7 | . 3 1 4 5 7 Combat Bots Only 7 | . 3 . 4 . 7 Max Kills in Single Turn 4 | . 1 1 2 1 4 Gunslinging . | . . . . . . Exploded 3 | . . . . . 3 Melee . | . . . . . . Uniques/NPCs Destroyed . | . . . . . . Combat | -11 -10 -10 -10 -7 -7 -------- Run | Yrd Mat Min Sub Rec Scr Hostile Shots Fired 337 | . 46 . 168 . 123 Missed 80 | . 8 . 62 . 10 Hits 257 | . 38 . 106 . 113 Melee 12 | . . . . . 12 Projectile 245 | . 38 . 106 . 101 Critical Strikes 10 | . 1 . . . 9 Actively Blocked 2 | . . . . . 2 Damage Taken 3222 | . 265 . 1045 24 1888 Core 2507 | . 212 . 819 18 1458 Absorbed by Shields . | . . . . . . Redirected to Core 2148 | . 168 . 717 18 1245 Redirected to Shielding 86 | . . . . . 86 Ignored by Resistances 1867 | . 169 . 583 13 1102 Regen/Repaired (Parts) 329 | . 146 . . . 183 Core Remaining (%) 100 | 100 . . . . . Volleys Fired 196 | . 54 2 112 14 14 Largest 4 | . 3 3 3 3 4 Hottest 219 | . 130 130 210 210 219 Shots Fired 410 | . 102 6 226 31 45 Gun 229 | . 93 4 113 13 6 Cannon 121 | . 9 2 59 14 37 Launcher . | . . . . . . Special 60 | . . . 54 4 2 Kinetic 123 | . 55 2 54 . 12 Thermal 274 | . 47 4 172 30 21 Explosive . | . . . . . . Electromagnetic 13 | . . . . 1 12 Robot Hit Streak 64 | . 25 5 64 20 27 Robot Miss Streak 2 | . 2 1 1 1 1 Penetration Max . | . . . . . . Secondary Targets . | . . . . . . Shots Hit Robots 278 | . 78 5 144 20 31 Core Hits 82 | . 32 1 25 8 16 Critical Kills . | . . . . . . Critical Parts Destroyed 1 | . 1 . . . . Critical Strikes 8 | . 1 . 5 1 1 Burn 6 | . . . 5 1 . Destroy 1 | . 1 . . . . Corrupt 1 | . . . . . 1 Melee Attacks 10 | . . . . 10 . Impact 10 | . . . . 10 . Slashing . | . . . . . . Piercing . | . . . . . . Sneak Attacks . | . . . . . . Combat Hostiles . | . . . . . . Follow-up Attacks . | . . . . . . Damage Inflicted 3433 | . 993 71 1102 384 883 Guns 1748 | . 942 36 610 113 47 Cannons 1316 | . 51 35 420 226 584 Explosions 249 | . . . . 21 228 Melee . | . . . . . . Ramming . | . . . . . . Kinetic 1107 | . 603 11 272 . 221 Thermal 2088 | . 390 60 830 361 447 Explosive . | . . . . . . Electromagnetic 238 | . . . . 23 215 Impact . | . . . . . . Slashing . | . . . . . . Piercing . | . . . . . . Highest Corruption 1 | . 1 1 1 1 1 Average Corruption 1 | . 1 1 1 1 1 Corruption Purged . | . . . . . . Corruption Blocked . | . . . . . . Effects 53 | . 3 4 18 8 20 Message Errors 15 | . 1 2 4 1 7 Matter Fused 13 | . 1 1 7 . 4 Heat Flow Errors 7 | . . 1 4 1 1 Energy Discharges 5 | . . . . 4 1 Parts Rejected 1 | . . . 1 . . Parts Fused 1 | . . . . 1 . Data Loss (minor) 6 | . . . 2 . 4 Data Loss (major) 3 | . . . . 1 2 Misfires 2 | . 1 . . . 1 Overload Shots . | . . . . . . Overflow Damage 7 | . . . . . 7 Projectiles 7 | . . . . . 7 Explosions . | . . . . . . Melee . | . . . . . . Knockbacks 2 | . . . . . 2 Impact . | . . . . . . Kinetic 2 | . . . . . 2 Secondary . | . . . . . . Self-Inflicted Damage 57 | . . . . 24 33 Shots 2 | . . . . 1 1 Rammed . | . . . . . . Targets Rammed . | . . . . . . Kicked . | . . . . . . Crushed . | . . . . . . Highest Temperature 1007 | . 234 113 249 368 1007 Average Temperature 161 | . 64 46 44 178 372 Received Heat Transfer 1386 | . 198 . 438 . 750 Effects 32 | . . . 1 1 30 Shutdowns 9 | . . . . . 9 Energy Bleed 4 | . . . 1 1 2 Interference 6 | . . . . . 6 Matter Decay 5 | . . . . . 5 Short Circuit 1 | . . . . . 1 Damage (minor) 3 | . . . . . 3 Damage (major) 4 | . . . . . 4 Siege Activations . | . . . . . . Martial Activations . | . . . . . . Shielding Activations . | . . . . . . Robots Disrupted . | . . . . . . Combat Hostiles . | . . . . . . Robots Corrupted . | . . . . . . Combat Hostiles . | . . . . . . Parts Fried 1 | . . . . . 1 Impact Corruptions . | . . . . . . Robots Melted . | . . . . . . Combat Hostiles . | . . . . . . Parts Melted 9 | . 2 . 1 4 2 Heat Transferred 5004 | . 1051 148 2407 840 558 Parts Sabotaged . | . . . . . . Parts Stolen 2 | . . . . . 2 Parts Stripped . | . . . . . . Power Chain Reactions 2 | . . . . 1 1 Alert | -11 -10 -10 -10 -7 -7 ------- Run | Yrd Mat Min Sub Rec Scr Maximum Alert Level . | . . . . . . Low Security (%) 100 | 100 100 100 . 100 . Level 1 . | . . . . . . Level 2 . | . . . . . . Level 3 . | . . . . . . Level 4 . | . . . . . . Level 5 . | . . . . . . High Security . | . . . . . . Max Security . | . . . . . . Peak Influence 65 | . 65 5 . 42 . Initial 42 | . . . . 42 . Average 5 | . 6 . . 4 . Influence Increases 686 | . 359 5 180 142 . Destroy 0b10 Robot/C 280 | . 160 . 120 . . Destroy 0b10 Robot/NC 95 | . 55 5 . 35 . Destroy Leader 46 | . 46 . . . . Trap Triggered on 0b10 20 | . 20 . . . . Successful Hack 67 | . 32 . . 35 . Select Force Hacks 60 | . . . . 60 . Destroy Structure 13 | . 1 . . 12 . Partial Spotted 15 | . 15 . . . . Lose Combat Pursuer 90 | . 30 . 60 . . Influence Decreases 686 | . 359 5 60 262 . Entered New Map 78 | . . . . 78 . Time Decay 597 | . 359 5 60 173 . Purge Threat 11 | . . . . 11 . Squads Dispatched . | . . . . . . Investigation . | . . . . . . Extermination . | . . . . . . Reinforcement . | . . . . . . Assault . | . . . . . . Garrison . | . . . . . . Intercept . | . . . . . . Searches Triggered . | . . . . . . Construction Impeded . | . . . . . . Haulers Reinforced . | . . . . . . Active Scanning Responses . | . . . . . . Cargo Convoy Interrupts . | . . . . . . Stealth | -11 -10 -10 -10 -7 -7 --------- Run | Yrd Mat Min Sub Rec Scr Distress Signals . | . . . . . . Communications Jammed . | . . . . . . Distress Signals . | . . . . . . Times Spotted 47 | . 15 . 18 . 14 Peak Tracking Total 11 | . 3 . 6 . 11 Tactical Retreats 4 | . 2 . 2 . . Traps | -11 -10 -10 -10 -7 -7 ------- Run | Yrd Mat Min Sub Rec Scr Traps Triggered 9 | . 6 . 3 . . Indirectly . | . . . . . . Trap Hack Attempts . | . . . . . . Triggered . | . . . . . . Disarmed . | . . . . . . Reprogrammed 12 | . 12 . . . . Reused 2 | . 2 . . . . Traps Extracted . | . . . . . . Installed . | . . . . . . Triggered 2 | . 2 . . . . Machines | -11 -10 -10 -10 -7 -7 ---------- Run | Yrd Mat Min Sub Rec Scr Machines Disabled 4 | . . . 2 . 2 Max in Single Turn 1 | . . . 1 . 1 Machines Repaired . | . . . . . . Machines Dismantled . | . . . . . . Machines Sabotaged . | . . . . . . Overloaded Fab Kills . | . . . . . . Hacking | -11 -10 -10 -10 -7 -7 --------- Run | Yrd Mat Min Sub Rec Scr Machines Accessed 25 | . 8 . 3 9 5 Terminals 11 | . 6 . . 5 . Fabricators . | . . . . . . Repair Stations 1 | . 1 . . . . Recycling Units 3 | . 1 . . 2 . Scanalyzers . | . . . . . . Garrison Access . | . . . . . . Total Hacks 146 | . 37 . 6 60 43 Successful 130 | . 29 . 6 52 43 Failed 16 | . 8 . . 8 . Catastrophic . | . . . . . . Database Lockouts . | . . . . . . Manual 62 | . 27 . . 35 . Terminals 52 | . 24 . . 28 . Fabricators . | . . . . . . Repair Stations 9 | . 9 . . . . Recycling Units 11 | . 4 . . 7 . Scanalyzers . | . . . . . . Garrison Access . | . . . . . . Terminal Hacks 90 | . 6 . 6 35 43 Record 65 | . . . 4 24 37 Robot Analysis 6 | . . . . . 6 Prototype ID Bank 1 | . . . . 1 . Open Door 1 | . . . 1 . . Level Access Points 1 | . . . . 1 . Branch Access Points 3 | . 1 . . 2 . Emergency Access Points 2 | . 1 . . 1 . Unreport Threat 1 | . . . . 1 . Reprogram Traps 4 | . 3 . . 1 . Security Status 1 | . . . . 1 . Zone Layout 3 | . 1 . . 2 . Release Object 2 | . . . 1 1 . Fabricator Hacks . | . . . . . . Repair Station Hacks 9 | . 9 . . . . Scan Component 5 | . 5 . . . . Repair 4 | . 4 . . . . Recycling Unit Hacks 1 | . 1 . . . . Retrieve Components 1 | . 1 . . . . Scanalyzer . | . . . . . . Garrison Access Hacks . | . . . . . . Unauthorized Hacks 30 | . 13 . . 17 . Terminals 23 | . 11 . . 12 . Track 8 | . 4 . . 4 . Assimilate 6 | . 3 . . 3 . Botnet 6 | . 3 . . 3 . Disrupt 3 | . 1 . . 2 . Fabricators . | . . . . . . Repair Stations . | . . . . . . Recycling Units 7 | . 2 . . 5 . Recyclers 3 | . 1 . . 2 . Mask 2 | . 1 . . 1 . Tunnel 2 | . . . . 2 . Scanalyzers . | . . . . . . Garrison Access . | . . . . . . Data Cores Recovered . | . . . . . . Used . | . . . . . . Hacking Detections 10 | . 6 . . 4 . Full Trace Events . | . . . . . . Feedback Events . | . . . . . . Feedback Blocked . | . . . . . . Robot Schematics Acquired . | . . . . . . Robots Built . | . . . . . . Authchips . | . . . . . . Time . | . . . . . . Total Robot Build Rating . | . . . . . . Part Schematics Acquired . | . . . . . . Parts Built . | . . . . . . Authchips . | . . . . . . Time . | . . . . . . Total Part Build Rating . | . . . . . . Part Studies Acquired . | . . . . . . Parts Repaired 4 | . 4 . . . . Time 104 | . 104 . . . . Parts Recycled . | . . . . . . Recycled Matter . | . . . . . . Retrieved Matter . | . . . . . . Retrieved Components 10 | . 10 . . . . Parts Scanalyzed . | . . . . . . Part Schematics Acquired . | . . . . . . Parts Damaged . | . . . . . . Bothacking | -11 -10 -10 -10 -7 -7 ------------ Run | Yrd Mat Min Sub Rec Scr Used RIF Installer . | . . . . . . Robots Hacked . | . . . . . . Non-combat . | . . . . . . Combat . | . . . . . . Robot Hacks Applied . | . . . . . . Relay Couplers Released . | . . . . . . Fabnet Peak Effective % . | . . . . . . Robots Rewired . | . . . . . . Allies Hacked . | . . . . . . Hacks Repelled . | . . . . . . Allies | -11 -10 -10 -10 -7 -7 -------- Run | Yrd Mat Min Sub Rec Scr Total Allies . | . . . . . . Largest Group . | . . . . . . Highest-Rated Group . | . . . . . . Highest-Rated Ally . | . . . . . . Total Orders . | . . . . . . Ally Attacks . | . . . . . . Total Damage . | . . . . . . Kills . | . . . . . . Allies Corrupted . | . . . . . . Allies Melted . | . . . . . . Intel | -11 -10 -10 -10 -7 -7 ------- Run | Yrd Mat Min Sub Rec Scr Active Infowar (turns) 7482 | 67 1647 190 2651 997 1930 Sensors 520 | 67 453 . . . . Terrain 6874 | . 1135 190 2647 997 1905 Structural 7067 | . 1299 190 2651 997 1930 Seismic 59 | . 59 . . . . Robot Analysis Total 6 | . . . . . 6 Derelict Logs Recovered 1 | . . . 1 . . Drone Launches . | . . . . . . Drone Recoveries . | . . . . . . Exploration | -11 -10 -10 -10 -7 -7 ------------- Run | Yrd Mat Min Sub Rec Scr Turns Passed 7518 | 97 1647 190 2653 997 1934 Spaces Moved 4090 | 58 851 102 1366 561 1152 Core 4 | 2 2 . . . . Treads 4086 | 56 849 102 1366 561 1152 Legs . | . . . . . . Wheels . | . . . . . . Hover . | . . . . . . Flight . | . . . . . . Fastest Speed 50 | 50 50 160 160 160 160 Average Speed 160 | 156 159 160 160 160 160 Slowest Speed 260 | 160 160 160 160 160 260 Overloaded Moves . | . . . . . . Propulsion Burnouts . | . . . . . . Robots Hopped . | . . . . . . Potential Cave-ins . | . . . . . . Cave-ins Triggered . | . . . . . . Exploration Rate (%) 53 | 4 93 20 64 75 67 Regions Visited 5 Branch Regions 4 Pre-discovered Areas 3 | . . . 1 2 . Known Exits Taken 5 | 1 1 1 1 1 . Unknown Exits Taken . | . . . . . . Scrap Searched 5 | . . . 2 . 3 Spaces Dug 11 | . . . . 11 . Terrain Destroyed 23 | . . . . 16 7 Melee 10 | . . . . 10 . Projectile 8 | . . . . 3 5 AOE 5 | . . . . 3 2 Terrain Rammed . | . . . . . . Walls Destroyed . | . . . . . . Machines Disabled . | . . . . . . Actions | -11 -10 -10 -10 -7 -7 --------- Run | Yrd Mat Min Sub Rec Scr Total 4583 | 62 1048 124 1533 610 1206 Wait 171 | . 107 21 27 . 16 Move 4085 | 57 850 101 1365 560 1152 Hop . | . . . . . . Pick Up 9 | . 3 . 1 4 1 Fast Attach 28 | 5 18 . 2 3 . Attach 4 | . . . 1 3 . Detach 1 | . . . . 1 . Swap 30 | . 3 . 13 6 8 Drop 24 | . 6 . 4 9 5 Fire 196 | . 54 2 112 14 14 Melee 10 | . . . . 10 . Ram . | . . . . . . Kick . | . . . . . . Crush . | . . . . . . Escape Stasis . | . . . . . . Rewire . | . . . . . . Trap . | . . . . . . Miscellaneous 25 | . 7 . 8 . 10 Route ------- -11/Scrapyard -10/Materials (discovered 5 exits: *Mat x3 / *Min x2) -10/Mines (discovered 2 exits: Mat / *Sub) -10/Subcaves -7/Recycling (discovered 2 exits: Fac / *Scr) -7/Scraptown (discovered 1 exit: *Fac) History --------- Turn | Location | Event 15 | -11/Scrapyard | Upgraded with Propulsion slot (x1) 23 | -11/Scrapyard | Identified exit to Materials 23 | -11/Scrapyard | Discovered exit to Materials (range 15) 98 | -11/Scrapyard | Entered Materials 318 | -10/Materials | Build established: Hacker-Mutant 359 | -10/Materials | Upgraded with Weapon slot (x1) 381 | -10/Materials | Upgraded with Power slot (x1) 419 | -10/Materials | Upgraded with Utility slot (x2) 425 | -10/Materials | Upgraded with Utility slot (x1) 428 | -10/Materials | Upgraded with Weapon slot (x1) 591 | -10/Materials | Identified exit to Mines 888 | -10/Materials | Identified exit to Materials 888 | -10/Materials | Discovered exit to Materials (range 16) 911 | -10/Materials | Build established: Hacker-Skirmisher 1200 | -10/Materials | Repaired Lgt. Treads 1228 | -10/Materials | Repaired Lgt. Treads 1255 | -10/Materials | Repaired Assault Rifle 1281 | -10/Materials | Repaired Structural Scanner 1467 | -10/Materials | Discovered exit to Materials (range 11) 1557 | -10/Materials | Discovered exit to Materials (range 12) 1745 | -10/Materials | Entered Mines 1747 | -10/Mines | Reached level 2 1858 | -10/Mines | Discovered exit to Materials (range 12) 1867 | -10/Mines | Identified exit to Subcaves 1867 | -10/Mines | Discovered exit to Subcaves (range 8) 1935 | -10/Mines | Entered Subcaves 1936 | -10/Subcaves | Approached by a straggling Scientist 1998 | -10/Subcaves | Ambushed by Subdwellers from Twisted Machinery 2105 | -10/Subcaves | Core integrity fell below 50% 2155 | -10/Subcaves | Core integrity fell below 20% 2275 | -10/Subcaves | Learned location of Storage (-7) 2620 | -10/Subcaves | Released subatomizers from SUBCON Basin 2703 | -10/Subcaves | Visited Clippyterm 2708 | -10/Subcaves | Learned Factory stockpile data 3470 | -10/Subcaves | A swath of the cavern ceiling suddenly collapsed 4496 | -10/Subcaves | Identified exit to Recycling 4496 | -10/Subcaves | Discovered exit to Recycling (range 12) 4506 | -10/Subcaves | Reached level 3 4588 | -10/Subcaves | Entered Recycling 4590 | -7/Recycling | Reached level 4 4590 | -7/Recycling | Reached level 5 4590 | -7/Recycling | Reached level 6 4590 | -7/Recycling | Reached level 7 4834 | -7/Recycling | Upgraded with Weapon slot (x1) 4886 | -7/Recycling | Upgraded with Utility slot (x1) 4927 | -7/Recycling | Build established: Hacker-Assassin 5430 | -7/Recycling | Identified exit to Factory 5514 | -7/Recycling | Reached level 8 5534 | -7/Recycling | Scanned before Scraplab entrance 5554 | -7/Recycling | Identified exit to Scraptown 5554 | -7/Recycling | Discovered exit to Scraptown (range 11) 5558 | -7/Recycling | Entered Scraplab 5572 | -7/Recycling | Found SUBCON Basin 5585 | -7/Recycling | Entered Scraptown 5806 | -7/Scraptown | Visited Cyclists 5826 | -7/Scraptown | Visited The Evicted 5900 | -7/Scraptown | Discovered exit to Factory (range 5) 6444 | -7/Scraptown | Heard Great Nut preacher, LISTEN AND RECITE! 6474 | -7/Scraptown | Visited UFD Registry 6474 | -7/Scraptown | Registered with UFD as "Spikestep" 6486 | -7/Scraptown | Visited CR-KLE's Repair Center 6514 | -7/Scraptown | CR-KLE repaired 8 parts 6540 | -7/Scraptown | Visited SPCMW 6610 | -7/Scraptown | Entered Cyclist Reading Room 6767 | -7/Scraptown | Visited Comm Corps 6876 | -7/Scraptown | Visited Supply Room 7187 | -7/Scraptown | Visited Scrapoid Research Area 7246 | -7/Scraptown | Visited Analyses Database 7307 | -7/Scraptown | Attacked by Scraptown defenders 7519 | -7/Scraptown | Destroyed by Triborg with Siege Cannon Last Messages --------------- 07513_ Overheating: Pulse Rifle damaged (-22). 07513_ Penetrated by Siege Slug. 07514_ Overheating: Matter decay (-34). 07514_ Used Protomatter to restore core integrity (+138, depleted) 07515_ Structural Scanner broken. 07515_ Overheating: Short circuit. 07515_ Penetrated by Siege Slug. 07515_ Acquired 103 matter. 07516_ Power failure, Nuclear Core shutdown. 07516_ Power failure, Lgt. Deuterium Engine shutdown. 07516_ Overheating: System interference. 07516_ Ion Cannon temporarily disabled. 07516_ Imp. Heat Sink temporarily disabled. 07517_ Overheating: Matter decay (-53). 07517_ Penetrated by Siege Slug. 07518_ Overheating: System interference. 07518_ Adv. Assault Cannon temporarily disabled. 07518_ Acquired 27 matter. 07519_ Penetrated by Siege Slug. 07519_ Lgt. Deuterium Engine destroyed. Map ----- +----------------------------------------------------+ | ?????????????????????????????????????????????????? | | ?????????????????????????????????????????????????? | | ?????????????????????????????????????????????????? | | ?????????????????????????????????????????????????? | | ???????????????????????????????????????????????? | | "????????????????????????????????????????????? | | "????????????????????????????????????????????? | | ""???????????????????????????????????????????? | | ""???????????????????????????????????????????? | | ""???????????????????????????????"???????????? | | "" ??? ??? ????????????? ???? ? ?????????? | | "" ?? "?? ?? ???? ????????? "##?????????? | | ""# ? ? ?? ?#?##???#???"? "##?????????? | | ""# ??" ???"??###????##?"? "##?????????? | | ""# ?"" ""???#?#?#######"? "##?????????? | | ""# ? ????#####?####"" "##?????????? | | ""# ###########"" "##?????????? | | ""###### ################"" "##"?"??????? | | """""""""""""""""""""""""""" "## "??????? | | """"""""""""""""""""""""""""p ???????? | | "## ????????? | | %= "## ????????? | | ![j* "## ????????? | | !!=%TT ## ????????? | | =%!%TT # ??? ???? | | """" """"""""""" """"""%%@% """""" ## ??????? | | #### ########### ######!# %#%##;### ## ????????? | | ##### ## ]%*%=" """# ## "? ?????? | | "##### ## #==z[ " "##??#?????? | | " "##?##""" ""# #!!j! """ # #####??????? | | "" ""#####"" "# ##!= "##" # ##????#????? | | "" #####"" " X "####* ##" # ##?#???#???? | | "" " #####""""""""####[!"" " # ###????????? | | " """##?##############!"## "# ??? ???????? | | """##?##############%"##" # ??? ???? | | """##???############==% ""# ? ????????? | | " " " ##??#?########?##!* """# ????????? | | """" ##?#?#?#??###?###;######### ? ??????????? | | ###########??########?### #########?? #????#?????? | | ##########????#??#?###?##;##?######? ?##????????? | | ?????????"?"#?"""?#"""#;"""##? ?# ?????????????? | | "?? ????????????" ??#??"#""" #?" #? ???????????? | | ??? ?? ????????? ? ? ?? ??????????????? | | "????????? ????? ?? ? ????? ????"??????????? | | ???????? ???????? ? ?? ??????? ? ?""?????????? | | ???????"?????????"??#"??#? ? ?????????#??????????? | | ? ??????????????????????#?"???"????#????????????? | | ?????????#?????????????????#??#??????????????????? | | ???????????#???????????????#?#???????????????????? | | ?????????????????????????????#???????????????????? | +----------------------------------------------------+ Best States ------------- Heat Dissipation 39 Energy Generation 23 Energy Capacity 310 Matter Stores 300 Matter Capacity 300 Sight Range 16 Robot Scan Range 14 Terrain Scan Range 14 Terrain Scan Density 85 Resistance: KI 35 Resistance: TH 35 Resistance: EX 35 Resistance: EM 35 Resistance: I 35 Resistance: S 35 Resistance: P 35 Weapon Shielding 66 Evasion (%) 50 Recoil Reduction 2 Offensive Hacking 30 Defensive Hacking 15 Item Schematics ----------------- None Robot Schematics ------------------ None Fabricated ------------ Nothing Repaired ---------- Lgt. Treads | 63% | -10/Materials Lgt. Treads | 58% | -10/Materials Assault Rifle | 68% | -10/Materials Structural Scanner | 75% | -10/Materials Studied --------- None Alien Tech Used ----------------- None Achievements -------------- None Challenges ------------ None RPGLIKE | -11 -10 -10 -10 -7 -7 --------- Run | Yrd Mat Min Sub Rec Scr Levels Raised 7 | . . 1 1 5 . XP Earned 17663 | 6000 1230 500 1600 7238 1095 XP Spent 14530 | 500 5350 1200 480 7000 . Upgrades 44 | 1 10 2 8 23 . Power Slot 1 | . 1 . . . . Propulsion Slot 1 | 1 . . . . . Utility Slot 4 | . 3 . . 1 . Weapon Slot 3 | . 2 . . 1 . Core Integrity 28 | . . . 8 20 . Inventory Capacity 2 | . 1 . . 1 . Hack Attack % 2 | . 1 1 . . . Hack Defense % 3 | . 2 1 . . . Protomatter Created 310 | . 45 . 80 . 185 Integrity Restored 481 | . 133 . 120 . 228 Core 469 | . 121 . 120 . 228 Parts 12 | . 12 . . . . Protomatter Decayed . | . . . . . . Game ------ Seed ParticleAutogunMeganuke Manual? 0 Play Time 00:58:14 Cumulative 498.6 hours Start 2026.08.13 @ 18:03:10 End 2026.08.13 @ 18:58:43 Sessions 1 Manual Loads 0 Difficulty Explorer Special Mode Winter2019/RPGLIKE Game No. 24 Rogue 5 Adventurer 1 Explorer 18 Win Type - Total 1 Types 1/0/0/0/0/0/0/0/0/0 Lore% 45 Gallery% 50 Achievement% 46 Wizard Run 0 Options --------- Layout 0 ASCII 0 Keyboard 0 Movement Mouse Keybinds 0 Fullscreen 2 Font 18/X11 Map View 38x25 Zoom Use 74% Tactical HUD 1 Map Filters NONE Filters NONE Steam 1 RUN: 5f015eb1-079a-4dae-a98b-b49eb6ef2e4c